[Event "*** Titled Tuesday Blitz"]
[Site "Chess.com"]
[Date "2018.04.03"]
[Round "2"]
[White "pultineviciuspaulius"]
[Black "gkchesstiger"]
[Result "1/2-1/2"]
[WhiteElo "2613"]
[BlackElo "2749"]
[TimeControl "180+2"]
[EndTime "13:26:08 PDT"]
[Termination "Game drawn by repetition"]

1. Nf3 {[%clk 0:03:01.9]} 1... Nf6 {[%clk 0:03:00.3]} 2. g3 {[%clk 0:03:03.5]}
2... d5 {[%clk 0:03:00.8]} 3. Bg2 {[%clk 0:03:05.1]} 3... c6 {[%clk 0:03:01]} 4.
O-O {[%clk 0:03:06.6]} 4... Bf5 {[%clk 0:03:02]} 5. b3 {[%clk 0:03:07]} 5... e6
{[%clk 0:03:02.8]} 6. Bb2 {[%clk 0:03:08.3]} 6... Be7 {[%clk 0:03:03.2]} 7. d3
{[%clk 0:03:09.6]} 7... h6 {[%clk 0:03:04.4]} 8. Nbd2 {[%clk 0:03:10.8]} 8...
Bh7 {[%clk 0:03:04.5]} 9. c4 {[%clk 0:03:12.3]} 9... O-O {[%clk 0:03:04.7]} 10.
a3 {[%clk 0:03:13.2]} 10... a5 {[%clk 0:03:05.7]} 11. Qc2 {[%clk 0:03:13.9]}
11... Na6 {[%clk 0:03:06.7]} 12. Bc3 {[%clk 0:03:14.7]} 12... Qb6 {[%clk
0:03:07.5]} 13. Qb2 {[%clk 0:03:15]} 13... Rfd8 {[%clk 0:03:07]} 14. Rab1 {[%clk
0:02:57.2]} 14... Nc5 {[%clk 0:03:06.1]} 15. Bd4 {[%clk 0:02:56.4]} 15... Qa6
{[%clk 0:03:04.3]} 16. Ne5 {[%clk 0:02:55.6]} 16... Ne8 {[%clk 0:02:53.1]} 17.
Rfc1 {[%clk 0:02:53.7]} 17... Nd7 {[%clk 0:02:39.4]} 18. Nxd7 {[%clk 0:02:43.1]}
18... Rxd7 {[%clk 0:02:40.6]} 19. Nf3 {[%clk 0:02:41.4]} 19... Rdd8 {[%clk
0:02:38.1]} 20. Ra1 {[%clk 0:02:27]} 20... c5 {[%clk 0:02:38.6]} 21. Bc3 {[%clk
0:02:21.4]} 21... b5 {[%clk 0:02:39.1]} 22. cxd5 {[%clk 0:02:15.8]} 22... exd5
{[%clk 0:02:39.3]} 23. b4 {[%clk 0:02:17]} 23... c4 {[%clk 0:02:14.9]} 24. dxc4
{[%clk 0:02:11.4]} 24... bxc4 {[%clk 0:02:16.1]} 25. b5 {[%clk 0:02:03.7]} 25...
Qb6 {[%clk 0:02:15.5]} 26. a4 {[%clk 0:02:02]} 26... Be4 {[%clk 0:02:10.5]} 27.
Nd4 {[%clk 0:02:01.8]} 27... Bxg2 {[%clk 0:02:10.8]} 28. Kxg2 {[%clk 0:02:03.6]}
28... Bf6 {[%clk 0:01:42.9]} 29. Rd1 {[%clk 0:02:03.3]} 29... Rd7 {[%clk
0:01:36.7]} 30. Nc6 {[%clk 0:01:57.6]} 30... Bxc3 {[%clk 0:01:35.8]} 31. Qxc3
{[%clk 0:01:59.5]} 31... Nf6 {[%clk 0:01:37]} 32. e3 {[%clk 0:01:40]} 32... Rd6
{[%clk 0:01:33.4]} 33. Rac1 {[%clk 0:01:32.4]} 33... Re8 {[%clk 0:01:29.6]} 34.
Qd4 {[%clk 0:01:10.6]} 34... Rxc6 {[%clk 0:01:29]} 35. bxc6 {[%clk 0:01:10]}
35... Qxc6 {[%clk 0:01:30.3]} 36. Rb1 {[%clk 0:01:03.8]} 36... Qxa4 {[%clk
0:01:29]} 37. Ra1 {[%clk 0:01:04.9]} 37... Qb5 {[%clk 0:01:24.4]} 38. Rdb1
{[%clk 0:01:04.3]} 38... Qa6 {[%clk 0:01:24.5]} 39. Qc5 {[%clk 0:01:03]} 39...
a4 {[%clk 0:01:22.7]} 40. Rb6 {[%clk 0:01:02.7]} 40... Qa8 {[%clk 0:01:21.7]}
41. Qc6 {[%clk 0:00:59.6]} 41... Rc8 {[%clk 0:01:21.6]} 42. Qxa8 {[%clk
0:00:54.3]} 42... Rxa8 {[%clk 0:01:22.2]} 43. Rb4 {[%clk 0:00:45.3]} 43... a3
{[%clk 0:01:23.1]} 44. Ra2 {[%clk 0:00:44.3]} 44... Ne4 {[%clk 0:01:23.3]} 45.
Ra1 {[%clk 0:00:34.8]} 45... Nc3 {[%clk 0:01:18]} 46. Kf1 {[%clk 0:00:32.1]}
46... a2 {[%clk 0:01:08.3]} 47. Rb2 {[%clk 0:00:32.3]} 47... Ra3 {[%clk
0:01:09]} 48. Ke1 {[%clk 0:00:31.2]} 48... Rb3 {[%clk 0:01:05.4]} 49. Raxa2
{[%clk 0:00:27.8]} 49... Nxa2 {[%clk 0:01:05.7]} 50. Rxa2 {[%clk 0:00:29.5]}
50... g5 {[%clk 0:01:01]} 51. Ra5 {[%clk 0:00:29.3]} 51... Rd3 {[%clk
0:00:59.1]} 52. Rc5 {[%clk 0:00:29.7]} 52... Kg7 {[%clk 0:00:54.5]} 53. e4
{[%clk 0:00:30.8]} 53... dxe4 {[%clk 0:00:53.7]} 54. Rxc4 {[%clk 0:00:32.1]}
54... f5 {[%clk 0:00:53.4]} 55. g4 {[%clk 0:00:32.5]} 55... fxg4 {[%clk
0:00:48.4]} 56. Rxe4 {[%clk 0:00:32.7]} 56... h5 {[%clk 0:00:49.6]} 57. Kf1
{[%clk 0:00:31.2]} 57... Kf6 {[%clk 0:00:48.1]} 58. Kg2 {[%clk 0:00:31.8]} 58...
Kf5 {[%clk 0:00:46.8]} 59. Ra4 {[%clk 0:00:32.3]} 59... h4 {[%clk 0:00:47.8]}
60. Ra5+ {[%clk 0:00:32.9]} 60... Kg6 {[%clk 0:00:49.1]} 61. Ra1 {[%clk
0:00:21]} 61... Rb3 {[%clk 0:00:49.7]} 62. Rc1 {[%clk 0:00:21.1]} 62... Rb2
{[%clk 0:00:46.2]} 63. Rc6+ {[%clk 0:00:20.9]} 63... Kh5 {[%clk 0:00:46.1]} 64.
Rc1 {[%clk 0:00:17.6]} 64... h3+ {[%clk 0:00:42.8]} 65. Kg1 {[%clk 0:00:18.1]}
65... Kg6 {[%clk 0:00:43.4]} 66. Rc6+ {[%clk 0:00:18.4]} 66... Kf5 {[%clk
0:00:44.5]} 67. Rc5+ {[%clk 0:00:15]} 67... Ke4 {[%clk 0:00:45.3]} 68. Rc1
{[%clk 0:00:13.2]} 68... Kd3 {[%clk 0:00:46.3]} 69. Kf1 {[%clk 0:00:11.3]} 69...
Kd2 {[%clk 0:00:44]} 70. Ra1 {[%clk 0:00:12.2]} 70... Rc2 {[%clk 0:00:44.8]} 71.
Re1 {[%clk 0:00:09.1]} 71... Kd3 {[%clk 0:00:32]} 72. Re3+ {[%clk 0:00:09.8]}
72... Kd4 {[%clk 0:00:32.2]} 73. Rg3 {[%clk 0:00:11.1]} 73... Rc1+ {[%clk
0:00:18.4]} 74. Ke2 {[%clk 0:00:12.3]} 74... Rc2+ {[%clk 0:00:19.8]} 75. Ke1
{[%clk 0:00:13.1]} 75... Rc1+ {[%clk 0:00:21.1]} 76. Kd2 {[%clk 0:00:13.9]}
76... Rh1 {[%clk 0:00:22.2]} 77. Rxg4+ {[%clk 0:00:14.6]} 77... Ke5 {[%clk
0:00:23.4]} 78. Rxg5+ {[%clk 0:00:15.7]} 78... Kf4 {[%clk 0:00:24.6]} 79. Rg3
{[%clk 0:00:16.6]} 79... Rxh2 {[%clk 0:00:25.9]} 80. Ke2 {[%clk 0:00:17.9]}
80... Rh1 {[%clk 0:00:27.4]} 81. Ra3 {[%clk 0:00:17.1]} 81... h2 {[%clk
0:00:26.5]} 82. Rh3 {[%clk 0:00:17.3]} 82... Kg4 {[%clk 0:00:27.8]} 83. Rh8
{[%clk 0:00:17.8]} 83... Kf4 {[%clk 0:00:29.1]} 84. Rf8+ {[%clk 0:00:18.4]}
84... Kg4 {[%clk 0:00:30.1]} 85. Rg8+ {[%clk 0:00:19.2]} 85... Kf4 {[%clk
0:00:31.4]} 86. Rh8 {[%clk 0:00:20.2]} 86... Kg4 {[%clk 0:00:32.5]} 87. Rg8+
{[%clk 0:00:21]} 87... Kf4 {[%clk 0:00:33.9]} 88. Rh8 {[%clk 0:00:22.1]} 88...
Kg4 {[%clk 0:00:35.2]} 89. Rg8+ {[%clk 0:00:23.3]} 1/2-1/2

[Event "*** Titled Tuesday Blitz"]
[Site "Chess.com"]
[Date "2018.04.03"]
[Round "2"]
[White "335394862"]
[Black "Albertu"]
[Result "0-1"]
[WhiteElo "2302"]
[BlackElo "2242"]
[TimeControl "180+2"]
[EndTime "13:26:50 PDT"]
[Termination "Albertu won by checkmate"]

1. e4 {[%clk 0:03:01.9]} 1... e5 {[%clk 0:02:58.6]} 2. Nf3 {[%clk 0:03:02.7]}
2... Nc6 {[%clk 0:03:00.1]} 3. Bc4 {[%clk 0:02:56.3]} 3... Nf6 {[%clk
0:03:00.6]} 4. d3 {[%clk 0:02:56.7]} 4... Bc5 {[%clk 0:03:00.7]} 5. O-O {[%clk
0:02:57.4]} 5... O-O {[%clk 0:03:01.7]} 6. Nbd2 {[%clk 0:02:53.9]} 6... d5
{[%clk 0:02:54]} 7. exd5 {[%clk 0:02:54.1]} 7... Nxd5 {[%clk 0:02:55.9]} 8. Re1
{[%clk 0:02:52.8]} 8... Bg4 {[%clk 0:02:46.1]} 9. h3 {[%clk 0:02:53.6]} 9... Bh5
{[%clk 0:02:46.4]} 10. Ne4 {[%clk 0:02:54.5]} 10... Bb6 {[%clk 0:02:22.8]} 11.
Ng3 {[%clk 0:02:38.3]} 11... Bg6 {[%clk 0:00:59]} 12. c3 {[%clk 0:02:03.1]}
12... Qd6 {[%clk 0:00:47.4]} 13. Ne4 {[%clk 0:01:50.9]} 13... Qd7 {[%clk
0:00:47.5]} 14. Bd2 {[%clk 0:01:36.1]} 14... Rae8 {[%clk 0:00:47.5]} 15. b4
{[%clk 0:01:18.9]} 15... Kh8 {[%clk 0:00:34.8]} 16. Qb3 {[%clk 0:01:13]} 16...
Nf4 {[%clk 0:00:20.5]} 17. Bxf4 {[%clk 0:01:08]} 17... exf4 {[%clk 0:00:22.4]}
18. Rad1 {[%clk 0:01:03.6]} 18... h6 {[%clk 0:00:22.4]} 19. Nc5 {[%clk
0:00:55.3]} 19... Bxc5 {[%clk 0:00:22.9]} 20. bxc5 {[%clk 0:00:56.8]} 20... Na5
{[%clk 0:00:24.3]} 21. Qb5 {[%clk 0:00:47.3]} 21... Qxb5 {[%clk 0:00:25.2]} 22.
Bxb5 {[%clk 0:00:49.2]} 22... c6 {[%clk 0:00:26.7]} 23. Ba4 {[%clk 0:00:50.2]}
23... Rxe1+ {[%clk 0:00:28.1]} 24. Nxe1 {[%clk 0:00:51.7]} 24... Re8 {[%clk
0:00:28.8]} 25. Kf1 {[%clk 0:00:52.4]} 25... f6 {[%clk 0:00:28]} 26. Nf3 {[%clk
0:00:48.7]} 26... Bf7 {[%clk 0:00:28.8]} 27. Rd2 {[%clk 0:00:41.5]} 27... Rd8
{[%clk 0:00:27.4]} 28. Nd4 {[%clk 0:00:41.9]} 28... Rd5 {[%clk 0:00:25.9]} 29.
Nb3 {[%clk 0:00:38.3]} 29... Nxb3 {[%clk 0:00:18.7]} 30. Bxb3 {[%clk 0:00:40.2]}
30... Rd7 {[%clk 0:00:20.1]} 31. d4 {[%clk 0:00:41.6]} 31... Bxb3 {[%clk
0:00:19.4]} 32. axb3 {[%clk 0:00:43.5]} 32... g5 {[%clk 0:00:20.8]} 33. Ke2
{[%clk 0:00:41.2]} 33... Kg8 {[%clk 0:00:21.7]} 34. Kd3 {[%clk 0:00:42.1]} 34...
Kf7 {[%clk 0:00:23.2]} 35. c4 {[%clk 0:00:41.3]} 35... f5 {[%clk 0:00:20.8]} 36.
Re2 {[%clk 0:00:41.8]} 36... Re7 {[%clk 0:00:19.9]} 37. d5 {[%clk 0:00:34.8]}
37... cxd5 {[%clk 0:00:18.4]} 38. Rxe7+ {[%clk 0:00:32.3]} 38... Kxe7 {[%clk
0:00:20.3]} 39. cxd5 {[%clk 0:00:33.9]} 39... h5 {[%clk 0:00:19.8]} 40. Kd4
{[%clk 0:00:32.3]} 40... g4 {[%clk 0:00:21]} 41. h4 {[%clk 0:00:31.3]} 41... b6
{[%clk 0:00:14.1]} 42. b4 {[%clk 0:00:25.3]} 42... Kd7 {[%clk 0:00:15.2]} 43.
Ke5 {[%clk 0:00:23.6]} 43... a5 {[%clk 0:00:16.3]} 44. cxb6 {[%clk 0:00:21.2]}
44... axb4 {[%clk 0:00:17]} 45. b7 {[%clk 0:00:20.3]} 45... Kc7 {[%clk
0:00:17.7]} 46. d6+ {[%clk 0:00:21.7]} 46... Kxb7 {[%clk 0:00:18.8]} 47. Ke6
{[%clk 0:00:23]} 47... b3 {[%clk 0:00:19.7]} 48. d7 {[%clk 0:00:24.4]} 48... b2
{[%clk 0:00:21.2]} 49. d8=Q {[%clk 0:00:25.7]} 49... b1=Q {[%clk 0:00:22.7]} 50.
Qd5+ {[%clk 0:00:26.4]} 50... Kc7 {[%clk 0:00:23.1]} 51. Qc5+ {[%clk 0:00:25.1]}
51... Kb7 {[%clk 0:00:22.2]} 52. Qe7+ {[%clk 0:00:25.2]} 52... Kc6 {[%clk
0:00:20.7]} 53. Qd6+ {[%clk 0:00:24.1]} 53... Kb7 {[%clk 0:00:21.4]} 54. Qe7+
{[%clk 0:00:25.2]} 54... Kc6 {[%clk 0:00:22.3]} 55. Qd7+ {[%clk 0:00:26]} 55...
Kb6 {[%clk 0:00:22.3]} 56. Qd8+ {[%clk 0:00:26.9]} 56... Kb7 {[%clk 0:00:23.3]}
57. Qd7+ {[%clk 0:00:15.5]} 57... Kb6 {[%clk 0:00:23]} 58. Qd4+ {[%clk
0:00:15.4]} 58... Kb7 {[%clk 0:00:23.5]} 59. Qg7+ {[%clk 0:00:14.6]} 59... Kb6
{[%clk 0:00:23.6]} 60. Qd4+ {[%clk 0:00:14.7]} 60... Kb7 {[%clk 0:00:24.3]} 61.
Qd5+ {[%clk 0:00:15.9]} 61... Kb6 {[%clk 0:00:23.6]} 62. Qd8+ {[%clk 0:00:16.5]}
62... Kb7 {[%clk 0:00:24.5]} 63. Qd5+ {[%clk 0:00:17.1]} 63... Kb6 {[%clk
0:00:25.1]} 64. Qd6+ {[%clk 0:00:17.9]} 64... Kb7 {[%clk 0:00:26]} 65. Kd7
{[%clk 0:00:13.8]} 65... Qb5+ {[%clk 0:00:25.3]} 66. Ke7 {[%clk 0:00:12.1]}
66... Qe2+ {[%clk 0:00:24.6]} 67. Kd7 {[%clk 0:00:13.3]} 67... Qb5+ {[%clk
0:00:25.6]} 68. Ke7 {[%clk 0:00:14.5]} 68... Qe2+ {[%clk 0:00:24.8]} 69. Kd8
{[%clk 0:00:13.2]} 69... Qxf2 {[%clk 0:00:20.3]} 70. Qd7+ {[%clk 0:00:07]} 70...
Ka6 {[%clk 0:00:20.7]} 71. Qd3+ {[%clk 0:00:06.2]} 71... Ka7 {[%clk 0:00:21.1]}
72. Qd7+ {[%clk 0:00:06.4]} 72... Ka6 {[%clk 0:00:21]} 73. Qa4+ {[%clk
0:00:07.4]} 73... Kb7 {[%clk 0:00:21.4]} 74. Qd7+ {[%clk 0:00:08.2]} 74... Ka6
{[%clk 0:00:20.4]} 75. Qa4+ {[%clk 0:00:09.4]} 75... Kb6 {[%clk 0:00:21.1]} 76.
Qb4+ {[%clk 0:00:10.3]} 76... Kc6 {[%clk 0:00:21.5]} 77. Qc4+ {[%clk 0:00:11.5]}
77... Qc5 {[%clk 0:00:21.8]} 78. Qf7 {[%clk 0:00:08.1]} 78... Qd6+ {[%clk
0:00:21.4]} 79. Kc8 {[%clk 0:00:06.7]} 79... Qc5 {[%clk 0:00:12.5]} 80. Qe6+
{[%clk 0:00:07.1]} 80... Kb5+ {[%clk 0:00:13.5]} 81. Kd7 {[%clk 0:00:06.2]}
81... Qa7+ {[%clk 0:00:13.6]} 82. Ke8 {[%clk 0:00:06.8]} 82... Qb8+ {[%clk
0:00:14.2]} 83. Kf7 {[%clk 0:00:07.8]} 83... Qb7+ {[%clk 0:00:15.4]} 84. Kg6
{[%clk 0:00:08.7]} 84... Qc6 {[%clk 0:00:08.5]} 85. Qxc6+ {[%clk 0:00:07.8]}
85... Kxc6 {[%clk 0:00:10.4]} 86. Kxh5 {[%clk 0:00:06.3]} 86... f3 {[%clk
0:00:11.6]} 87. gxf3 {[%clk 0:00:07.5]} 87... gxf3 {[%clk 0:00:13.1]} 88. Kg5
{[%clk 0:00:09.4]} 88... f2 {[%clk 0:00:14.6]} 89. h5 {[%clk 0:00:11.3]} 89...
f1=Q {[%clk 0:00:15.8]} 90. h6 {[%clk 0:00:13.2]} 90... Qh3 {[%clk 0:00:16.3]}
91. h7 {[%clk 0:00:15.1]} 91... Qxh7 {[%clk 0:00:17.4]} 92. Kf6 {[%clk
0:00:16.8]} 92... f4 {[%clk 0:00:17.4]} 93. Ke5 {[%clk 0:00:18]} 93... f3 {[%clk
0:00:17.9]} 94. Kf6 {[%clk 0:00:19.9]} 94... f2 {[%clk 0:00:19]} 95. Kg5 {[%clk
0:00:21.8]} 95... f1=Q {[%clk 0:00:18.7]} 96. Kg4 {[%clk 0:00:23.7]} 96... Qhf5+
{[%clk 0:00:19.5]} 97. Kh4 {[%clk 0:00:25.6]} 97... Q1f4# {[%clk 0:00:20]} 0-1

[Event "*** Titled Tuesday Blitz"]
[Site "Chess.com"]
[Date "2018.04.03"]
[Round "2"]
[White "FMAntonio"]
[Black "Vice64"]
[Result "0-1"]
[WhiteElo "2375"]
[BlackElo "2372"]
[TimeControl "180+2"]
[EndTime "13:27:59 PDT"]
[Termination "Vice64 won on time"]

1. d4 {[%clk 0:02:30.8]} 1... Nf6 {[%clk 0:02:59.6]} 2. c4 {[%clk 0:02:31.7]}
2... e6 {[%clk 0:03:00.5]} 3. Nc3 {[%clk 0:02:32.9]} 3... Bb4 {[%clk 0:02:59.7]}
4. e3 {[%clk 0:02:34.3]} 4... O-O {[%clk 0:02:59.1]} 5. Ne2 {[%clk 0:02:35.5]}
5... Re8 {[%clk 0:02:58.5]} 6. a3 {[%clk 0:02:36.1]} 6... Bf8 {[%clk 0:02:58.4]}
7. Ng3 {[%clk 0:02:36.1]} 7... d6 {[%clk 0:02:59.1]} 8. Be2 {[%clk 0:02:32.7]}
8... e5 {[%clk 0:02:51.9]} 9. O-O {[%clk 0:02:33.5]} 9... Nc6 {[%clk 0:02:48.5]}
10. d5 {[%clk 0:02:30]} 10... Ne7 {[%clk 0:02:48.7]} 11. Qc2 {[%clk 0:02:31.6]}
11... a5 {[%clk 0:02:44.3]} 12. Rb1 {[%clk 0:02:31]} 12... c6 {[%clk 0:02:42]}
13. dxc6 {[%clk 0:02:31.2]} 13... bxc6 {[%clk 0:02:41.1]} 14. b4 {[%clk
0:02:32.1]} 14... axb4 {[%clk 0:02:40.2]} 15. axb4 {[%clk 0:02:33.3]} 15... d5
{[%clk 0:02:41.2]} 16. cxd5 {[%clk 0:02:32.7]} 16... cxd5 {[%clk 0:02:41.3]} 17.
Rd1 {[%clk 0:02:34.6]} 17... Be6 {[%clk 0:02:39.1]} 18. Bb5 {[%clk 0:02:34.6]}
18... Bd7 {[%clk 0:02:34.8]} 19. Bf1 {[%clk 0:02:35.6]} 19... Rc8 {[%clk
0:02:33.7]} 20. Qb3 {[%clk 0:02:33.6]} 20... Be6 {[%clk 0:02:32.1]} 21. Qb2
{[%clk 0:02:22.2]} 21... Qb6 {[%clk 0:02:30.4]} 22. Na4 {[%clk 0:02:18.8]} 22...
Qb8 {[%clk 0:02:30.3]} 23. Nc5 {[%clk 0:02:16.4]} 23... Bg4 {[%clk 0:02:27.3]}
24. f3 {[%clk 0:02:16.8]} 24... Bd7 {[%clk 0:02:24.6]} 25. Nxd7 {[%clk
0:02:09.4]} 25... Nxd7 {[%clk 0:02:26.5]} 26. Bd2 {[%clk 0:02:07.5]} 26... Nb6
{[%clk 0:02:24.5]} 27. Bc3 {[%clk 0:01:59.9]} 27... f6 {[%clk 0:02:19.3]} 28.
Ra1 {[%clk 0:01:50.3]} 28... Rc7 {[%clk 0:02:15.7]} 29. Be1 {[%clk 0:01:49.3]}
29... Rec8 {[%clk 0:02:12.9]} 30. Ba6 {[%clk 0:01:48.1]} 30... Rd8 {[%clk
0:02:11.1]} 31. Qb3 {[%clk 0:01:43.8]} 31... Kh8 {[%clk 0:02:04.4]} 32. Rdc1
{[%clk 0:01:38.3]} 32... g6 {[%clk 0:01:41.1]} 33. Bf1 {[%clk 0:01:18.9]} 33...
Rxc1 {[%clk 0:01:37.5]} 34. Rxc1 {[%clk 0:01:19.6]} 34... Bh6 {[%clk 0:01:38.3]}
35. Rd1 {[%clk 0:01:20.2]} 35... d4 {[%clk 0:01:33.7]} 36. exd4 {[%clk
0:01:20.2]} 36... exd4 {[%clk 0:01:33]} 37. Bf2 {[%clk 0:01:21.4]} 37... Nc6
{[%clk 0:01:25.7]} 38. b5 {[%clk 0:01:19.7]} 38... Ne5 {[%clk 0:01:16.7]} 39.
Rxd4 {[%clk 0:01:18.3]} 39... Rxd4 {[%clk 0:01:13.4]} 40. Bxd4 {[%clk
0:01:19.1]} 40... Qd6 {[%clk 0:01:15.3]} 41. Ne2 {[%clk 0:01:09.9]} 41... Kg7
{[%clk 0:01:11.8]} 42. f4 {[%clk 0:01:06.9]} 42... Bxf4 {[%clk 0:01:06.6]} 43.
g3 {[%clk 0:00:48.6]} 43... Bd2 {[%clk 0:01:04.2]} 44. Bg2 {[%clk 0:00:48.1]}
44... Bb4 {[%clk 0:00:55.5]} 45. Qc2 {[%clk 0:00:45.2]} 45... Nbc4 {[%clk
0:00:53.1]} 46. Bf2 {[%clk 0:00:18]} 46... Bc5 {[%clk 0:00:50.2]} 47. Nf4 {[%clk
0:00:19.2]} 47... Qb6 {[%clk 0:00:37.1]} 48. Bxc5 {[%clk 0:00:15.6]} 48... Qxc5+
{[%clk 0:00:37.9]} 49. Qf2 {[%clk 0:00:10.2]} 49... Qxb5 {[%clk 0:00:36.7]} 50.
h3 {[%clk 0:00:11.1]} 50... h5 {[%clk 0:00:30.3]} 51. Ne6+ {[%clk 0:00:10.9]}
51... Kf7 {[%clk 0:00:29.7]} 52. Ng5+ {[%clk 0:00:10.5]} 52... Ke7 {[%clk
0:00:27.9]} 53. Ne4 {[%clk 0:00:06.9]} 53... Qb6 {[%clk 0:00:24.6]} 54. Qxb6
{[%clk 0:00:05.6]} 54... Nxb6 {[%clk 0:00:26.5]} 55. Kf2 {[%clk 0:00:06.9]}
55... g5 {[%clk 0:00:25.7]} 56. Nc3 {[%clk 0:00:05.9]} 56... Nbc4 {[%clk
0:00:24.6]} 57. Bd5 {[%clk 0:00:06.1]} 57... Kd6 {[%clk 0:00:25.4]} 58. Be4
{[%clk 0:00:05.8]} 58... Kc5 {[%clk 0:00:23.9]} 59. Bc2 {[%clk 0:00:05.9]} 59...
Kd4 {[%clk 0:00:22.2]} 60. Nb5+ {[%clk 0:00:07.1]} 60... Kd5 {[%clk 0:00:21.3]}
61. Nc3+ {[%clk 0:00:07.7]} 61... Ke6 {[%clk 0:00:22.2]} 62. Ne4 {[%clk
0:00:07]} 62... Nd6 {[%clk 0:00:18.8]} 63. Bb3+ {[%clk 0:00:07.9]} 63... Ke7
{[%clk 0:00:18.4]} 64. Nc5 {[%clk 0:00:09.1]} 64... Nc6 {[%clk 0:00:16.5]} 65.
Bd1 {[%clk 0:00:09.1]} 65... Nd4 {[%clk 0:00:16.9]} 66. Bxh5 {[%clk 0:00:08.3]}
66... f5 {[%clk 0:00:16.7]} 67. Bd1 {[%clk 0:00:08.8]} 67... Kf6 {[%clk
0:00:16.9]} 68. Nd7+ {[%clk 0:00:06.8]} 68... Ke6 {[%clk 0:00:17.4]} 69. Nc5+
{[%clk 0:00:08]} 69... Kd5 {[%clk 0:00:17.7]} 70. Nd7 {[%clk 0:00:06.2]} 70...
Ne4+ {[%clk 0:00:18.3]} 71. Kg2 {[%clk 0:00:03]} 71... Kd6 {[%clk 0:00:17.6]}
72. Nf8 {[%clk 0:00:03.1]} 72... Nc3 {[%clk 0:00:17.4]} 73. Bh5 {[%clk
0:00:02.7]} 73... Ke5 {[%clk 0:00:17.7]} 74. Ng6+ {[%clk 0:00:03.6]} 74... Ke4
{[%clk 0:00:18.5]} 75. Ne7 {[%clk 0:00:03.8]} 75... Nc2 {[%clk 0:00:13.5]} 76.
Bg6 {[%clk 0:00:04.7]} 76... Ne3+ {[%clk 0:00:13.1]} 77. Kh2 {[%clk 0:00:05.7]}
77... Ke5 {[%clk 0:00:13.4]} 78. Nc6+ {[%clk 0:00:03.7]} 78... Kf6 {[%clk
0:00:14.1]} 79. Be8 {[%clk 0:00:02.7]} 79... Ne4 {[%clk 0:00:15.3]} 80. Nd4
{[%clk 0:00:03.1]} 80... Nf1+ {[%clk 0:00:15.3]} 81. Kg2 {[%clk 0:00:03.7]}
81... Nfxg3 {[%clk 0:00:16.9]} 82. Bc6 {[%clk 0:00:04.7]} 82... f4 {[%clk
0:00:17.2]} 83. Nf3 {[%clk 0:00:02.3]} 83... Nd6 {[%clk 0:00:17.6]} 84. Bd5
{[%clk 0:00:03.1]} 84... Ndf5 {[%clk 0:00:18.4]} 85. Bc6 {[%clk 0:00:03]} 85...
Ne3+ {[%clk 0:00:17.9]} 86. Kf2 {[%clk 0:00:03.6]} 86... Ngf5 {[%clk 0:00:19.3]}
87. Ba8 {[%clk 0:00:03.7]} 87... Nd6 {[%clk 0:00:19.9]} 88. Nh2 {[%clk
0:00:04.4]} 88... Ndf5 {[%clk 0:00:17.4]} 89. Nf3 {[%clk 0:00:04.6]} 89... Ng3
{[%clk 0:00:18.2]} 90. Nd2 {[%clk 0:00:05.5]} 90... Kf5 {[%clk 0:00:17.3]} 91.
Bf3 {[%clk 0:00:05.8]} 91... Nc2 {[%clk 0:00:10.4]} 92. Bc6 {[%clk 0:00:06]}
92... Nd4 {[%clk 0:00:10.3]} 93. Bd7+ {[%clk 0:00:06.9]} 93... Kf6 {[%clk
0:00:09.7]} 94. Bc8 {[%clk 0:00:06]} 94... Ndf5 {[%clk 0:00:10]} 95. Bd7 {[%clk
0:00:04.6]} 95... Nd6 {[%clk 0:00:08.4]} 96. Kf3 {[%clk 0:00:03.3]} 96... Ngf5
{[%clk 0:00:03.7]} 0-1

[Event "*** Titled Tuesday Blitz"]
[Site "Chess.com"]
[Date "2018.04.03"]
[Round "3"]
[White "BKMZBKMZ"]
[Black "GMMelik"]
[Result "1-0"]
[WhiteElo "2584"]
[BlackElo "2383"]
[TimeControl "180+2"]
[EndTime "13:31:57 PDT"]
[Termination "BKMZBKMZ won by resignation"]

1. e4 {[%clk 0:02:57.7]} 1... e5 {[%clk 0:02:57.1]} 2. Nf3 {[%clk 0:02:58]} 2...
Nc6 {[%clk 0:02:58.1]} 3. d4 {[%clk 0:02:59.6]} 3... exd4 {[%clk 0:02:58.9]} 4.
Nxd4 {[%clk 0:03:01.5]} 4... Nf6 {[%clk 0:02:59.9]} 5. Nxc6 {[%clk 0:03:02.6]}
5... bxc6 {[%clk 0:03:00.7]} 6. e5 {[%clk 0:03:04.1]} 6... Qe7 {[%clk
0:03:01.8]} 7. Qe2 {[%clk 0:03:05.6]} 7... Nd5 {[%clk 0:03:02.8]} 8. h4 {[%clk
0:03:06.5]} 8... f6 {[%clk 0:02:53.7]} 9. c4 {[%clk 0:03:04.7]} 9... Nb6 {[%clk
0:02:48.9]} 10. exf6 {[%clk 0:03:01.1]} 10... gxf6 {[%clk 0:02:47.2]} 11. b3
{[%clk 0:02:49.7]} 11... Qxe2+ {[%clk 0:02:38.2]} 12. Bxe2 {[%clk 0:02:50.4]}
12... Bg7 {[%clk 0:02:40.1]} 13. Bh5+ {[%clk 0:02:49.6]} 13... Kf8 {[%clk
0:02:39.1]} 14. Bb2 {[%clk 0:02:47.1]} 14... f5 {[%clk 0:02:40]} 15. Nc3 {[%clk
0:02:42.2]} 15... d5 {[%clk 0:02:41.1]} 16. O-O-O {[%clk 0:02:42.2]} 16... Be6
{[%clk 0:02:29.7]} 17. Rhe1 {[%clk 0:02:38.9]} 17... Bf7 {[%clk 0:02:26.7]} 18.
Bxf7 {[%clk 0:02:39.6]} 18... Kxf7 {[%clk 0:02:28.6]} 19. cxd5 {[%clk
0:02:41.2]} 19... cxd5 {[%clk 0:02:17.5]} 20. Nxd5 {[%clk 0:02:41.7]} 20...
Bxb2+ {[%clk 0:02:17.5]} 21. Kxb2 {[%clk 0:02:43.6]} 21... Rhe8 {[%clk
0:02:08.1]} 22. Nxc7 {[%clk 0:02:38.5]} 22... Rxe1 {[%clk 0:02:08.5]} 23. Rxe1
{[%clk 0:02:38.9]} 23... Rd8 {[%clk 0:02:09.2]} 24. Re2 {[%clk 0:02:37.6]} 24...
f4 {[%clk 0:01:47.9]} 25. Ne6 {[%clk 0:02:36.8]} 1-0

[Event "*** Titled Tuesday Blitz"]
[Site "Chess.com"]
[Date "2018.04.03"]
[Round "3"]
[White "joppie2"]
[Black "DiogenesSinopeus"]
[Result "0-1"]
[WhiteElo "2668"]
[BlackElo "2432"]
[TimeControl "180+2"]
[EndTime "13:32:25 PDT"]
[Termination "DiogenesSinopeus won by checkmate"]

1. e4 {[%clk 0:03:01.2]} 1... e5 {[%clk 0:03:01]} 2. f4 {[%clk 0:03:02.1]} 2...
Bc5 {[%clk 0:03:01.4]} 3. Nf3 {[%clk 0:03:03.4]} 3... d6 {[%clk 0:03:02.4]} 4.
Nc3 {[%clk 0:03:04.9]} 4... Nf6 {[%clk 0:03:03.2]} 5. Bc4 {[%clk 0:03:06.6]}
5... Nc6 {[%clk 0:03:04.7]} 6. d3 {[%clk 0:03:08.3]} 6... Bg4 {[%clk 0:03:06.1]}
7. Na4 {[%clk 0:03:09.4]} 7... O-O {[%clk 0:03:06.5]} 8. Nxc5 {[%clk 0:03:10.5]}
8... dxc5 {[%clk 0:03:08.4]} 9. h3 {[%clk 0:03:10.6]} 9... Bxf3 {[%clk
0:03:07.6]} 10. Qxf3 {[%clk 0:03:09.2]} 10... b5 {[%clk 0:03:09.2]} 11. Bb3
{[%clk 0:02:53.6]} 11... Nd4 {[%clk 0:03:10.1]} 12. Qf2 {[%clk 0:02:54.2]} 12...
c4 {[%clk 0:03:08.8]} 13. dxc4 {[%clk 0:02:56]} 13... Nxe4 {[%clk 0:03:07.9]}
14. Qe3 {[%clk 0:02:56]} 14... Qh4+ {[%clk 0:02:56.3]} 15. Kf1 {[%clk
0:02:53.5]} 15... Ng3+ {[%clk 0:02:28.4]} 16. Kg1 {[%clk 0:02:52.2]} 16... exf4
{[%clk 0:02:04.4]} 17. Qf2 {[%clk 0:02:53]} 17... Rae8 {[%clk 0:01:41.4]} 18.
Kh2 {[%clk 0:02:53]} 18... Re2 {[%clk 0:00:50]} 19. Qxf4 {[%clk 0:02:35.4]}
19... Nh5 {[%clk 0:00:46.1]} 20. Qxh4 {[%clk 0:02:35.6]} 20... Nf3# {[%clk
0:00:47.5]} 0-1